bitfinex/quotes_ETHUSD_20240925
["timestamp","ask_amount","ask_price","bid_price","bid_amount"]
[1727228446531,3.73497,2677.4,2676.8,3.7358]
[1727228446742,3.73497,2677.4,2676.9,0.12989682]
[1727228447166,3.73497,2677.4,2676.9,0.05519441]
[1727228447464,3.73525,2677.2,2676.9,0.05519441]
[1727228447632,3.73539,2677.1,2676.7,0.07470243]
[1727228447831,3.73539,2677.1,2676.4,4.49473]
[1727228447832,7.88734204,2677.2,2677.0,0.0550058]
[1727228448032,7.88734204,2677.2,2676.5,3.81089746]
[1727228448033,3.73525,2677.2,2676.5,3.81089746]
[1727228448249,3.73525,2677.2,2677.1,0.05489889]
[1727228448422,0.2063,2676.9,2676.3,3.73641]
[1727228448972,7.88734204,2677.2,2676.5,3.73621]
[1727228449126,7.88734204,2677.2,2676.4,3.86692009]
[1727228449127,3.94579204,2677.2,2676.7,3.7358]
[1727228449469,3.73502,2677.4,2676.8,0.13014595]
[1727228450194,7.88685204,2677.6,2676.8,0.13014595]
[1727228450195,3.94579204,2677.6,2676.9,0.7584]
[1727228450466,3.94579204,2677.6,2676.8,0.13014595]
[1727228450467,3.73499,2677.4,2676.8,3.79123214]
[1727228450649,3.73499,2677.4,2677.0,0.05524803]
[1727228450980,3.73407,2678.1,2676.5,3.73615]
[1727228450981,3.73542,2677.1,2676.5,3.73615]
[1727228451126,3.94579204,2677.6,2676.6,0.07470762]
[1727228451326,3.94579204,2677.6,2676.9,3.73565]
[1727228451327,3.73486,2677.5,2676.9,3.73565]
[1727228451546,3.73486,2677.5,2677.0,0.07469931]
[1727228451971,3.94579204,2677.2,2676.5,3.73615]
[1727228452122,3.94579204,2677.2,2676.7,3.73592]
[1727228452322,3.73539,2677.1,2676.3,3.73644]
[1727228452574,3.94579204,2676.8,2675.9,3.73694]
[1727228452775,3.94579204,2676.8,2676.1,3.73677]
[1727228452776,3.73603,2676.7,2676.1,3.73677]
[1727228453076,3.73561,2677.0,2676.3,3.73642]
[1727228453274,3.73561,2677.0,2675.7,3.73728]
[1727228453275,7.68109204,2677.2,2676.4,0.83311694]
[1727228453434,7.68109204,2677.2,2676.4,4.55054528]
[1727228453435,3.7356,2677.0,2676.4,4.55054528]
[1727228453772,3.7356,2677.0,2676.5,0.05584468]
[1727228454122,7.68160204,2676.8,2676.2,3.73655]
[1727228454424,7.68160204,2676.8,2676.3,0.05608115]
[1727228454425,3.73581,2676.8,2676.3,0.05608115]
[1727228454622,8.42873904,2676.8,2676.3,0.05608115]
[1727228454828,8.42873904,2676.8,2676.1,3.73672]
[1727228454829,7.68160204,2676.8,2676.1,3.73672]
[1727228455134,11.41751204,2676.8,2676.1,3.81144153]
[1727228455435,11.41751204,2676.8,2676.2,0.05619375]
[1727228455649,3.73596,2676.7,2676.2,0.05619375]
[1727228455871,3.73595,2676.7,2676.2,0.05619375]
[1727228456042,3.73594,2676.7,2676.2,0.05619375]
[1727228456353,3.73594,2676.7,2676.1,3.73676]
[1727228456666,3.73594,2676.7,2676.2,0.05622194]
[1727228456880,3.73609,2676.6,2676.2,0.05622194]
[1727228457175,3.9416,2677.2,2676.0,0.7584]
[1727228457176,0.2063,2677.2,2676.5,3.73618]
[1727228457469,3.73489,2677.5,2676.7,4.49432]
[1727228457687,3.73489,2677.5,2676.8,0.07470288]
[1727228457975,3.73489,2677.5,2676.9,3.73562]
[1727228457976,7.46985,2677.5,2676.9,3.73562]
[1727228458186,3.73489,2677.5,2677.0,0.07470293]
[1727228458464,3.73489,2677.5,2677.0,0.13029758]
[1727228458863,3.73489,2677.5,2677.0,3.86579758]
[1727228460191,3.73489,2677.5,2677.0,0.13029758]
[1727228460890,3.73489,2677.5,2677.0,0.05559465]
[1727228461731,3.94579204,2677.2,2677.0,0.05559465]
[1727228461927,7.68113204,2677.2,2676.5,3.73608]
[1727228462131,7.68113204,2677.2,2676.6,0.05585892]
[1727228462773,3.7354,2677.1,2676.6,0.05585892]
[1727228462933,7.68113204,2677.2,2676.6,0.05585892]
[1727228462934,3.94579204,2677.2,2676.6,0.05585892]
[1727228463134,3.94579204,2676.8,2676.1,4.56654]
[1727228463337,7.68167204,2676.8,2676.2,0.05438048]
[1727228463645,7.68167204,2676.8,2676.2,3.79100048]
[1727228464203,0.2063,2676.3,2675.0,0.78151512]
[1727228464338,0.2063,2676.3,2675.2,3.73792]
[1727228464339,3.73702,2676.0,2675.2,3.73792]
[1727228464531,3.94579204,2675.6,2674.8,0.8298]
[1727228464835,0.95427027,2676.0,2674.8,0.8298]
[1727228464836,3.94579204,2675.5,2674.9,3.73835]
[1727228465192,3.73669,2676.2,2674.9,3.73842]
[1727228465492,0.2063,2676.3,2674.9,3.73842]
[1727228465493,3.73719,2675.9,2675.0,0.07475058]
[1727228465633,3.73679,2676.1,2675.0,3.81300058]
[1727228465835,3.94282,2676.3,2675.1,0.8298]
[1727228466074,3.94282,2676.3,2675.2,0.07474326]
[1727228466075,3.94579204,2675.8,2675.2,0.07474326]
[1727228469058,7.68299204,2675.8,2675.2,0.07474326]
[1727228469257,7.68299204,2675.8,2675.1,0.8298]
[1727228469258,3.73748,2675.6,2675.1,0.8298]
[1727228469488,0.2063,2675.7,2674.5,4.5688]
[1727228469695,0.2063,2675.7,2674.5,4.64354951]
[1727228469998,0.2063,2675.7,2674.6,0.07475184]
[1727228469999,3.94579204,2675.0,2674.6,0.07475184]
[1727228470150,3.94579204,2675.0,2674.5,0.8298]
[1727228470350,3.94579204,2675.0,2673.7,0.8298]
[1727228470351,3.73928,2674.4,2673.7,0.8298]
[1727228470548,3.94579204,2674.0,2673.7,0.8298]
[1727228470752,3.94579204,2674.0,2673.8,0.0490387]
[1727228470961,3.73985,2673.9,2673.5,0.0764596]
[1727228471196,7.68551204,2674.0,2673.5,0.0764596]
[1727228471197,3.94579204,2673.6,2673.5,0.0764596]
[1727228471352,7.68606204,2673.6,2673.5,0.0764596]
[1727228471980,7.89236204,2673.6,2673.5,0.0764596]
[1727228473356,4.15209204,2673.6,2673.5,0.0764596]
[1727228473557,3.94579204,2673.6,2673.5,0.0764596]
[1727228473999,7.68606204,2673.6,2673.5,0.0764596]
[1727228474282,3.94579204,2673.6,2673.5,0.0764596]
[1727228474453,7.68606204,2673.6,2673.5,0.0764596]
[1727228474978,3.94579204,2673.6,2673.5,0.0764596]
[1727228475181,3.74007,2673.8,2673.5,0.0764596]
[1727228475360,3.94579204,2674.0,2673.5,0.0764596]
[1727228475555,3.94579204,2674.0,2673.6,0.04820581]
[1727228475556,7.68563204,2674.0,2673.6,0.04820581]
[1727228475788,3.74013,2673.7,2673.6,0.04820581]
[1727228476152,3.74013,2673.7,2673.5,0.0764596]
[1727228476153,3.74027,2673.6,2673.5,0.0764596]
[1727228476453,3.94579204,2673.6,2673.5,0.0764596]
[1727228476950,3.73986,2673.9,2673.5,0.0764596]
[1727228477294,3.73986,2673.9,2673.6,0.04820581]
[1727228477495,3.74013,2673.7,2673.6,0.04820581]
[1727228477859,3.73986,2673.9,2673.5,0.0764596]
[1727228478166,3.73986,2673.9,2673.6,0.04820581]
[1727228478368,3.73999,2673.8,2673.6,0.04820581]
[1727228478695,3.74013,2673.7,2673.5,0.0764596]
[1727228478883,3.94579204,2673.6,2673.5,0.0764596]
[1727228479302,7.68606204,2673.6,2673.5,0.0764596]
[1727228479752,7.89236204,2673.6,2673.5,0.0764596]
[1727228480466,3.74027,2673.6,2673.5,0.0764596]
[1727228480672,3.7399,2673.9,2673.5,0.0764596]
[1727228480870,3.74,2673.8,2673.5,0.0764596]
[1727228481070,3.74015,2673.7,2673.5,0.0764596]
[1727228481266,3.74027,2673.6,2673.5,0.0764596]
[1727228481476,7.68606204,2673.6,2673.5,0.0764596]
[1727228481799,7.68606204,2673.6,2671.9,3.8190696]
[1727228481800,3.74148,2672.8,2672.0,0.8107]
[1727228481982,7.68727204,2672.8,2672.0,0.8107]
[1727228482160,11.42879204,2672.8,2672.0,0.8107]
[1727228482355,3.74178,2672.6,2672.0,0.8107]
[1727228482759,7.48355,2672.6,2672.0,0.8107]
[1727228482958,0.2063,2672.9,2672.0,0.88553606]
[1727228483299,3.74134,2672.9,2672.0,0.88553606]
[1727228483879,3.74134,2672.9,2672.0,4.62795606]
[1727228484208,7.48243,2673.0,2672.1,3.74235]
[1727228484519,3.74137,2672.9,2672.2,0.07482969]
[1727228484693,3.74147,2672.8,2672.2,0.07482969]
[1727228485219,3.74129,2672.9,2672.2,0.07482969]
[1727228485413,3.74141,2672.8,2672.2,0.07482969]
[1727228485588,3.74234,2672.2,2671.9,0.0764596]
[1727228485788,3.74251,2672.0,2671.9,0.0764596]
[1727228486014,3.74234,2672.2,2671.9,0.0764596]
[1727228486218,3.74196,2672.4,2671.9,0.0764596]
[1727228486392,0.2063,2672.5,2672.0,0.04818472]
[1727228486587,3.94811,2672.5,2672.0,0.04818472]
[1727228486978,3.74197,2672.4,2672.0,0.04818472]
[1727228488214,3.74198,2672.4,2672.0,0.04818472]
[1727228488381,3.74209,2672.3,2672.0,0.04818472]
[1727228488582,3.74237,2672.1,2672.0,0.04818472]
[1727228488789,3.74237,2672.1,2671.9,0.0764596]
[1727228488790,3.74251,2672.0,2671.9,0.0764596]
[1727228489224,4.49881,2672.0,2671.9,0.0764596]
[1727228489424,3.94881,2672.0,2671.9,0.0764596]
[1727228490520,7.89460204,2672.0,2671.9,0.0764596]
[1727228491033,7.89460204,2672.0,2671.1,0.78151512]
[1727228491034,3.74363,2671.2,2671.1,0.78151512]
[1727228491185,7.68942204,2671.2,2671.1,0.78151512]
[1727228491383,7.68942204,2671.2,2671.1,0.83066599]
[1727228491622,3.74377,2671.1,2671.0,1.17227268]
[1727228491830,4.29377,2671.1,2671.0,1.17227268]
[1727228491984,8.44600204,2671.0,2670.3,0.0764596]
[1727228492324,3.95105,2670.4,2670.3,0.0764596]
[1727228492542,7.89684204,2670.4,2670.3,0.0764596]
[1727228493325,8.44684204,2670.4,2670.3,0.0764596]
[1727228493525,3.74641,2669.3,2668.6,0.768]
[1727228493733,7.69184204,2669.5,2668.7,0.07493138]
[1727228493939,3.74577,2669.7,2668.9,0.07492353]
[1727228494353,2.3732,2674.1,2668.9,0.64499387]
[1727228494625,3.7421,2672.3,2670.9,3.74392]
[1727228494780,3.7421,2672.3,2669.8,3.74546]
[1727228494781,0.2063,2672.6,2671.0,0.0748463]
[1727228495007,0.2063,2672.6,2670.6,3.74441]
[1727228495196,0.2063,2672.2,2670.7,0.768]
[1727228495494,3.94863,2672.2,2670.8,0.0748692]
[1727228495695,3.74294,2671.7,2670.7,0.768]
[1727228496033,0.748559,2671.7,2670.7,0.768]
[1727228496335,7.68830204,2672.0,2670.7,0.768]
[1727228497094,3.74336,2671.4,2670.7,0.768]
[1727228497334,3.74336,2671.4,2669.6,3.74586]
[1727228497335,0.2063,2671.1,2670.3,0.768]
[1727228497501,3.94953,2671.5,2670.4,0.07489053]
[1727228497703,0.2063,2671.5,2670.4,0.07489053]
[1727228497897,0.2063,2671.5,2670.5,0.04225838]
[1727228498099,3.94954,2671.5,2670.5,0.04225838]
[1727228498329,3.94954,2671.5,2670.3,0.768]
[1727228498330,1.23330112,2671.4,2670.3,0.768]
[1727228498838,1.23330112,2671.4,2670.4,0.11725189]
[1727228499045,0.2063,2671.9,2670.7,0.768]
[1727228499334,0.2063,2671.9,2670.7,0.84287318]
[1727228499506,0.2063,2672.3,2671.2,0.768]
[1727228499717,0.62597521,2672.7,2671.3,0.07485801]
[1727228500041,0.62597521,2672.7,2670.2,3.0]
[1727228500042,3.74172,2672.6,2671.4,0.768]
[1727228500197,3.94579204,2672.4,2671.4,0.768]
[1727228501421,3.94579204,2672.4,2671.5,0.04102774]
[1727228501422,0.2063,2672.3,2671.5,0.04102774]
[1727228501611,0.2063,2672.3,2671.0,3.81870757]
[1727228502007,0.2063,2672.3,2671.1,0.04145721]
[1727228502337,3.94579204,2672.0,2671.1,0.04145721]
[1727228502573,7.68842204,2672.0,2671.1,0.04145721]
[1727228502875,3.94579204,2672.0,2671.2,0.04134983]
[1727228503085,0.2063,2672.3,2671.3,0.768]
[1727228503238,0.2063,2672.3,2671.3,0.80924246]
[1727228503632,3.7424,2672.1,2671.3,0.80924246]
[1727228503843,0.2063,2672.3,2671.3,0.80924246]
[1727228504042,3.94842,2672.3,2671.3,0.80924246]
[1727228504265,1.1636172,2672.2,2671.3,4.62755795]
[1727228504570,0.2063,2672.3,2671.3,4.62755795]
[1727228504773,3.74182,2672.5,2671.3,4.62755795]
[1727228504774,3.74182,2672.5,2671.4,3.74331]
[1727228504973,0.66347673,2672.6,2671.5,0.07485209]
[1727228504974,0.45717673,2672.6,2671.5,0.07485209]
[1727228505126,3.73981,2674.0,2671.5,0.07485209]
[1727228505127,7.68731204,2672.8,2671.6,0.7916]
[1727228505330,0.2063,2673.0,2672.0,3.7424]
[1727228505568,0.7893032,2673.0,2672.2,3.74222]
[1727228505775,3.947,2673.3,2672.2,3.74222]
[1727228506070,3.74058,2673.4,2672.4,3.74194]
[1727228506252,3.74069,2673.3,2672.4,3.74194]
[1727228506432,3.74069,2673.3,2672.5,0.04236754]
[1727228506634,3.74069,2673.3,2672.3,0.7916]
[1727228506928,4.114919,2673.2,2672.6,0.03943577]
[1727228507129,4.114919,2673.2,2672.3,4.53368]
[1727228507130,3.74085,2673.2,2672.3,4.53368]
[1727228507343,3.74058,2673.4,2672.3,4.53368]
[1727228507344,3.74058,2673.4,2672.7,0.03932851]
[1727228507544,3.74058,2673.4,2672.3,4.53368]
[1727228507847,3.74058,2673.4,2672.5,3.7417]
[1727228507848,3.74057,2673.4,2672.5,3.7417]
[1727228508048,7.68611204,2673.6,2672.5,3.7417]
[1727228508049,3.94579204,2674.0,2672.9,3.74112]
[1727228508273,3.94579204,2674.0,2673.0,0.7916]
[1727228508274,0.2063,2673.9,2673.0,0.7916]
[1727228508479,0.394607,2673.8,2673.0,4.57449297]
[1727228508683,0.394607,2673.8,2673.1,3.74084]
[1727228508833,0.394607,2673.8,2673.1,3.78251809]
[1727228509036,0.394607,2673.8,2673.1,0.04167809]
[1727228509235,0.394607,2673.8,2673.4,3.74052]
[1727228509477,0.394607,2673.8,2673.2,0.07481265]
[1727228509478,7.68494204,2674.4,2673.2,3.85402393]
[1727228509687,3.73915,2674.4,2673.5,3.78118222]
[1727228509969,0.394545,2674.3,2673.7,4.53162]
[1727228510173,0.2063,2674.5,2673.7,4.53162]
[1727228510343,0.2063,2674.5,2673.8,0.04343437]
[1727228510774,3.73894,2674.6,2673.8,3.78335437]
[1727228510944,3.73861,2674.8,2673.9,3.73972]
[1727228511150,0.373861,2674.7,2673.9,3.73972]
[1727228511361,0.373861,2674.7,2674.1,3.73956]
[1727228511566,3.73851,2674.9,2674.1,3.73956]
[1727228511736,3.73851,2674.9,2674.2,0.04293982]
[1727228511931,3.73837,2675.0,2674.2,0.04293982]
[1727228512137,3.7386,2674.8,2674.2,0.04293982]
[1727228512386,0.37386,2674.7,2674.2,0.04293982]
[1727228512671,0.2827596,2675.1,2674.3,3.7821062]
[1727228512672,4.0209496,2675.1,2674.3,3.7821062]
[1727228513181,4.0209496,2675.1,2674.3,0.0428162]
[1727228513182,3.73833,2675.0,2674.3,0.0428162]
[1727228513391,3.94579204,2674.8,2674.3,0.0428162]
[1727228513675,3.94579204,2674.8,2672.1,3.94579204]
[1727228513676,3.73956,2674.2,2673.4,0.7916]
[1727228513902,3.73939,2674.3,2673.4,4.53214]
[1727228514104,3.73943,2674.2,2673.5,0.04970984]
[1727228515025,7.68555204,2674.0,2673.5,0.04970984]
[1727228515297,7.68555204,2674.0,2673.1,4.53245]
[1727228515481,7.68555204,2674.0,2673.6,0.04543337]
[1727228515482,0.7891852,2673.9,2673.6,0.04543337]
[1727228515661,0.7891852,2673.9,2673.4,3.74055]
[1727228515662,0.7891852,2673.9,2673.5,3.74032]
[1727228515860,0.2063,2674.1,2673.5,3.70275134]
[1727228516059,0.2063,2674.1,2673.4,3.74055]
[1727228516060,0.2063,2674.1,2673.6,3.78570337]
[1727228517224,3.94579204,2674.4,2673.8,3.73995]
[1727228517599,3.94579204,2674.4,2673.9,0.04503147]
[1727228518200,7.68422,2674.6,2673.9,0.04503147]
[1727228518506,0.2063,2674.6,2673.9,3.78488147]
[1727228518659,0.600796,2674.6,2673.9,3.78488147]
[1727228518869,0.0764596,2675.1,2674.3,3.73918]
[1727228519205,0.0764596,2675.1,2674.6,3.73878]
[1727228519416,0.49931476,2675.1,2674.4,0.05198055]
[1727228519703,3.73832,2675.0,2674.2,4.54363]
[1727228519918,4.02225164,2675.1,2672.9,3.94579204]
[1727228519919,3.73888,2674.6,2674.5,0.05181987]
[1727228520078,4.7136472,2674.6,2674.5,0.05181987]
[1727228520282,4.7136472,2674.6,2673.8,3.7399]
[1727228520478,0.7684672,2674.6,2674.5,0.05161464]
[1727228520695,0.7684672,2674.6,2673.9,0.8043]
[1727228520905,0.47142592,2674.5,2673.8,3.73988]
[1727228521403,0.47142592,2674.5,2673.9,3.73974]
[1727228521765,0.47142592,2674.5,2672.9,3.74122]
[1727228521766,3.73944,2674.2,2672.9,3.74122]
[1727228521963,3.73944,2674.2,2673.4,3.74041]
[1727228522374,0.70418031,2674.4,2673.5,3.74038]
[1727228522631,0.70418031,2674.4,2672.9,3.74122]
[1727228522632,0.47142592,2674.5,2673.9,3.73977]
[1727228522969,0.47142592,2674.5,2673.9,3.73975]
[1727228523169,0.47142592,2674.5,2674.1,3.73947]
[1727228523507,0.2063,2674.8,2674.1,3.73947]
[1727228523711,3.945,2674.8,2674.0,3.73971]
[1727228524270,0.2063,2674.8,2674.0,4.54394]
[1727228524470,0.3945,2674.7,2674.0,4.54391]
[1727228524677,3.73889,2674.6,2673.8,3.7399]
[1727228524988,3.73954,2674.2,2673.4,3.74044]
[1727228525710,7.68572204,2673.9,2673.2,0.8043]
[1727228526004,3.74009,2673.8,2673.0,7.48201]
[1727228526215,7.68572204,2673.9,2673.0,7.48198]
[1727228526216,4.8827212,2673.7,2673.0,7.48198]
[1727228526375,4.8827212,2673.7,2673.0,3.74098]
[1727228526705,5.0890212,2673.7,2672.9,4.54554]
[1727228526926,0.50890212,2673.6,2672.9,0.8043]
[1727228527068,0.50890212,2673.6,2672.5,3.74168]
[1727228527069,3.7407,2673.3,2672.6,3.74167]
[1727228527268,7.48149,2673.3,2672.6,3.74167]
[1727228527525,0.2063,2673.0,2672.2,3.74222]
[1727228527822,3.74142,2672.8,2672.1,0.8043]
[1727228528027,3.94579204,2672.7,2672.3,0.05243589]
[1727228528180,3.94579204,2672.7,2672.2,0.05259683]
[1727228528181,3.74181,2672.5,2672.2,0.05259683]
[1727228528517,0.2063,2672.4,2671.6,3.74302]
[1727228528724,0.2063,2672.4,2671.5,0.8043]
[1727228528725,7.68790204,2672.3,2671.5,0.8043]
[1727228528869,4.5317002,2672.2,2671.5,0.8043]
[1727228529072,3.74238,2672.1,2671.3,3.74349]
[1727228529325,3.74256,2672.0,2671.3,3.74349]
[1727228529472,4.5317002,2672.2,2671.4,3.74335]
[1727228529473,0.84774922,2672.1,2671.4,3.74335]
[1727228529820,4.59013922,2672.1,2671.3,3.74337]
[1727228529988,0.45901392,2672.0,2671.3,3.74337]
[1727228530318,3.74221,2672.3,2671.3,3.74337]
[1727228530621,3.74225,2672.2,2671.5,3.74309]
[1727228530788,0.2063,2672.4,2671.6,3.74303]
[1727228531121,4.137001,2672.3,2671.5,3.74309]
[1727228531270,3.94579204,2672.3,2671.2,0.8043]
[1727228531476,3.74252,2672.0,2671.2,4.54792]
[1727228531816,7.68916204,2671.4,2670.5,0.39165968]
[1727228532024,0.7689162,2671.3,2670.6,3.74447]
[1727228532315,3.74337,2671.4,2670.4,4.54892]
[1727228532471,3.74337,2671.4,2670.5,3.7446]
[1727228533523,3.74349,2671.3,2670.5,3.7446]
[1727228533808,3.74349,2671.3,2670.6,0.04403124]
[1727228533809,0.374349,2671.2,2670.6,0.04403124]
[1727228534403,3.94579204,2671.4,2670.3,3.74488]
[1727228534404,3.74336,2671.4,2670.3,3.74488]
[1727228534582,3.74336,2671.4,2670.1,0.7945]
[1727228534583,3.74322,2671.5,2670.4,0.07489054]
[1727228534917,0.2063,2671.7,2670.7,3.74422]
[1727228534918,3.94924,2671.7,2670.7,3.74422]
[1727228535088,3.94924,2671.7,2670.9,3.74405]
[1727228535414,0.2063,2671.7,2670.9,0.44928373]
[1727228535629,0.2063,2671.7,2670.9,0.374405]
[1727228535923,3.74241,2672.1,2671.0,0.04736985]
[1727228536077,3.74241,2672.1,2671.2,3.74352]
[1727228536078,3.94871,2672.1,2671.2,3.74352]
[1727228536282,0.394871,2672.0,2671.2,3.74352]
[1727228536586,0.394871,2672.0,2671.3,0.04696717]
[1727228536772,0.2063,2672.1,2671.4,3.74332]
[1727228536976,0.2063,2672.1,2671.6,3.74306]
[1727228537171,3.74184,2672.5,2671.8,3.74268]
[1727228537172,0.2063,2672.5,2671.8,3.74268]
[1727228537481,0.4553621,2673.2,2671.8,3.74268]
[1727228537482,0.2063,2673.3,2672.6,3.74155]
[1727228537788,3.94702,2673.3,2672.6,3.74155]
[1727228538020,3.94702,2673.3,2672.7,0.04508919]
[1727228538021,3.7411,2673.1,2672.7,0.04508919]
[1727228538376,3.74113,2673.0,2672.2,3.7422]
[1727228538579,4.11524,2673.0,2672.3,0.04977333]
[1727228539421,3.74135,2672.9,2672.3,0.04977333]
[1727228539820,3.74148,2672.8,2672.3,0.04977333]
[1727228539976,0.748283,2672.7,2672.0,3.74244]
[1727228540176,3.74156,2672.7,2672.0,3.74244]
[1727228540382,3.74156,2672.7,2672.1,0.05006596]
[1727228540597,3.74204,2672.4,2671.6,3.74297]
[1727228540792,3.74221,2672.3,2671.6,3.74297]
[1727228541073,3.74221,2672.3,2671.5,0.7945]
[1727228541074,3.74237,2672.2,2671.7,0.04999144]
[1727228541282,0.374237,2672.1,2671.7,0.04999144]
[1727228541501,3.7426,2672.0,2671.2,4.53803]
[1727228541778,3.7427,2671.9,2671.2,4.53803]
[1727228542001,3.7428,2671.8,2671.3,0.04660692]
[1727228542388,3.7428,2671.8,2670.8,3.74418]
[1727228542389,3.74309,2671.6,2670.9,3.74403]
[1727228542938,0.580609,2671.5,2671.0,0.04701659]
[1727228543224,3.74377,2671.1,2671.0,0.04701659]
[1727228543375,3.74377,2671.1,2669.7,4.54022]
[1727228543376,3.74452,2670.6,2669.7,4.54022]
[1727228543576,3.74397,2671.0,2669.7,5.00694653]
[1727228543577,3.74423,2670.8,2669.7,5.00694653]
[1727228543885,3.74472,2670.5,2669.8,0.05614658]
[1727228544089,3.74489,2670.3,2669.8,0.05614658]
[1727228544394,3.74489,2670.3,2669.7,0.39182917]
[1727228544636,3.74489,2670.3,2669.5,3.74597]
[1727228544924,3.74489,2670.3,2669.4,0.7945]
[1727228544925,3.74514,2670.2,2669.4,0.7945]
[1727228545128,3.74489,2670.3,2669.6,0.05133552]
[1727228545292,3.74508,2670.2,2669.5,3.79747213]
[1727228545487,3.74489,2670.3,2669.7,0.04692318]
[1727228545705,3.74489,2670.3,2669.6,0.05133552]
[1727228545901,3.74489,2670.3,2669.8,0.05104234]
[1727228546222,3.95095,2670.5,2669.4,0.7945]
[1727228546223,0.2063,2670.9,2669.9,0.05089577]
[1727228546433,3.74437,2670.7,2669.9,0.05089577]
[1727228546604,3.74437,2670.7,2669.8,3.74555]
[1727228546605,3.74464,2670.5,2669.8,3.74555]
[1727228546785,3.74464,2670.5,2669.9,0.05089577]
[1727228547190,4.139437,2670.7,2669.9,0.05089577]
[1727228547191,3.74502,2670.3,2669.9,0.05089577]
[1727228547426,3.74531,2670.0,2669.4,0.7945]
[1727228547777,3.74531,2670.0,2669.5,0.05148213]
[1727228548507,3.74526,2670.1,2669.5,0.05148213]
[1727228549618,0.2063,2670.2,2669.5,0.05148213]
[1727228549824,3.74545,2669.9,2669.5,0.05148213]
[1727228550144,0.2063,2670.2,2669.5,0.05148213]
[1727228550145,3.95139,2670.2,2669.5,0.05148213]
[1727228550291,3.74481,2670.4,2669.7,3.74567]
[1727228550490,3.74481,2670.4,2669.7,4.57047]
[1727228550695,3.74481,2670.4,2669.8,0.04386345]
[1727228550932,0.2063,2670.5,2669.8,0.04386345]
[1727228551102,0.2063,2670.5,2670.0,3.7453]
[1727228551436,0.2063,2670.5,2670.1,0.04708773]
[1727228551437,3.74508,2670.2,2670.1,0.04708773]
[1727228551635,3.74508,2670.2,2669.4,3.74611]
[1727228551800,3.74508,2670.2,2669.5,3.79013976]
[1727228552000,3.74482,2670.4,2669.5,0.04420976]
[1727228552244,3.7449,2670.3,2669.6,3.74576]
[1727228552442,3.7449,2670.3,2669.7,0.04762514]
[1727228552802,3.74509,2670.2,2669.7,0.04762514]
[1727228553115,3.7452,2670.1,2669.7,0.04762514]
[1727228553313,3.74559,2669.8,2669.7,0.04762514]
[1727228553501,0.55,2670.4,2669.0,7.49329]
[1727228553502,3.74577,2669.7,2669.0,4.57143]
[1727228554442,3.746,2669.6,2669.0,0.8248]
[1727228554737,0.2063,2669.3,2668.8,0.0764596]
[1727228554910,3.95221,2669.6,2668.9,3.74678]
[1727228555100,0.55,2670.4,2669.1,3.74649]
[1727228555101,0.2063,2669.9,2669.1,3.74649]
[1727228555302,4.346932,2669.9,2669.2,3.74635]
[1727228556099,4.346932,2669.9,2669.1,3.74649]
[1727228556100,0.601472,2669.9,2669.1,3.74649]
[1727228556306,3.74563,2669.8,2669.1,3.74649]
[1727228556507,3.74518,2670.1,2669.3,3.74619]
[1727228556705,0.2063,2670.2,2669.4,0.8248]
[1727228557052,3.74544,2670.0,2669.4,4.57094]
[1727228557253,3.95135,2670.2,2669.5,3.74601]
[1727228557413,3.74481,2670.4,2669.7,3.74572]
[1727228557610,3.95085,2670.6,2669.5,4.13166455]
[1727228557611,3.74518,2670.1,2669.5,4.13166455]
[1727228557814,3.74512,2670.2,2669.5,3.74591]
[1727228558032,0.748994,2670.2,2669.4,0.8248]
[1727228558335,3.74568,2669.8,2669.4,0.8248]
[1727228558543,3.74568,2669.8,2669.1,0.8248]
[1727228558705,3.74573,2669.7,2669.1,0.8248]
[1727228559084,3.74568,2669.8,2669.1,0.8248]
[1727228559339,7.49138,2669.8,2669.1,4.5713]
[1727228559499,4.140878,2669.8,2669.1,4.5713]
[1727228559930,3.74577,2669.7,2669.1,4.5713]
[1727228560744,3.74577,2669.7,2669.1,8.3178]
[1727228561106,3.74577,2669.7,2669.1,0.8786083]
[1727228561306,3.74617,2669.4,2669.2,0.04215801]
[1727228561544,3.74602,2669.5,2669.2,0.04215801]
[1727228561850,7.49216,2669.5,2669.2,0.04215801]
[1727228562010,3.74602,2669.5,2669.2,0.09596631]
[1727228562975,3.7463,2669.3,2669.2,0.09596631]
[1727228563755,3.74595,2669.6,2669.2,0.09596631]
[1727228563988,3.74595,2669.6,2669.2,0.0538083]
[1727228564199,3.74602,2669.5,2669.3,0.0420428]
[1727228565053,3.74602,2669.5,2669.3,0.0958511]
[1727228565497,4.701657,2669.4,2669.3,0.0958511]
[1727228565655,3.95246,2669.4,2669.3,0.0958511]
[1727228565854,3.95246,2669.4,2669.3,0.0538083]
[1727228566490,8.44825204,2669.4,2669.3,0.0538083]
[1727228566873,11.44825204,2669.4,2669.3,0.0538083]
[1727228567073,11.44825204,2669.4,2668.4,0.0493755]
[1727228567074,3.74742,2668.5,2668.4,0.0493755]
[1727228568116,3.74715,2668.7,2668.4,0.0493755]
[1727228568439,3.74722,2668.7,2668.4,0.0493755]
[1727228568709,3.74736,2668.6,2668.5,0.04076352]
[1727228569421,3.7468,2669.0,2668.5,0.04076352]
[1727228569573,0.2063,2669.2,2668.5,0.85256352]
[1727228569574,3.74728,2668.6,2668.5,0.85256352]
[1727228569775,3.74728,2668.6,2668.4,0.0493755]
[1727228569974,3.74728,2668.6,2668.5,0.04069354]
[1727228569975,7.49466,2668.6,2668.5,0.04069354]
[1727228570175,3.74728,2668.6,2668.5,0.04069354]
[1727228571914,3.74728,2668.6,2668.4,0.0493755]
[1727228571915,3.74742,2668.5,2668.4,0.0493755]
[1727228573938,7.69213204,2669.3,2668.4,0.0493755]
[1727228573939,0.2063,2669.3,2668.4,0.0493755]
[1727228574106,3.74674,2669.0,2668.4,7.58509663]
[1727228574306,3.74674,2669.0,2668.4,3.7968255]
[1727228574510,3.74674,2669.0,2668.5,0.04069354]
[1727228574936,3.7468,2669.0,2668.5,0.04069354]
[1727228575898,3.74712,2668.8,2668.5,0.04069354]
[1727228576099,0.2063,2669.7,2668.9,3.74683]
[1727228576295,0.2063,2669.7,2669.0,5.00804387]